[Event "Early-Titled-Tuesday-Blitz-December-26-2023"]
[Site "Chess.com"]
[Date "2023.12.26"]
[Round "4"]
[White "SergioMoralesG"]
[Black "Ramosha"]
[Result "1/2-1/2"]
[WhiteElo "2388"]
[BlackElo "2585"]
[TimeControl "180+1"]
[EndTime "8:36:44 PST"]
[Termination "Game drawn by repetition"]

1. d4 {[%clk 0:03:00.9]} 1... d5 {[%clk 0:02:59.2]} 2. c4 {[%clk 0:03:00.6]}
2... dxc4 {[%clk 0:02:59.3]} 3. Nf3 {[%clk 0:03:00.2]} 3... Nf6 {[%clk
0:02:59.5]} 4. e3 {[%clk 0:02:59.3]} 4... e6 {[%clk 0:02:59.8]} 5. Bxc4 {[%clk
0:02:59]} 5... a6 {[%clk 0:02:59.4]} 6. O-O {[%clk 0:02:57]} 6... b5 {[%clk
0:02:59.8]} 7. Bb3 {[%clk 0:02:57.4]} 7... c5 {[%clk 0:03:00.3]} 8. Nc3 {[%clk
0:02:57.3]} 8... Bb7 {[%clk 0:03:00.1]} 9. e4 {[%clk 0:02:55.9]} 9... Nxe4
{[%clk 0:02:58.1]} 10. Nxe4 {[%clk 0:02:52.6]} 10... Bxe4 {[%clk 0:02:59]} 11.
Re1 {[%clk 0:02:50.7]} 11... Bb7 {[%clk 0:02:58.4]} 12. d5 {[%clk 0:02:38.8]}
12... c4 {[%clk 0:02:52.9]} 13. dxe6 {[%clk 0:02:36.6]} 13... Qxd1 {[%clk
0:02:52.8]} 14. exf7+ {[%clk 0:02:29.8]} 14... Kxf7 {[%clk 0:02:53.7]} 15. Bxd1
{[%clk 0:02:30]} 15... Nd7 {[%clk 0:02:44.8]} 16. a4 {[%clk 0:02:01]} 16... Be7
{[%clk 0:02:41.4]} 17. Bd2 {[%clk 0:01:57.1]} 17... Bf6 {[%clk 0:02:40]} 18. Bc3
{[%clk 0:01:57]} 18... Bc6 {[%clk 0:02:34.3]} 19. Bxf6 {[%clk 0:01:54.7]} 19...
gxf6 {[%clk 0:02:35.2]} 20. Nd4 {[%clk 0:01:54.6]} 20... Ne5 {[%clk 0:02:26.2]}
21. f4 {[%clk 0:01:49.8]} 21... Nd3 {[%clk 0:02:25.7]} 22. Nxc6 {[%clk
0:01:42.4]} 22... Nxe1 {[%clk 0:02:24.9]} 23. Bh5+ {[%clk 0:01:43]} 23... Kg7
{[%clk 0:02:25.4]} 24. Rxe1 {[%clk 0:01:43.3]} 24... bxa4 {[%clk 0:02:25.3]} 25.
Ne7 {[%clk 0:01:38.4]} 25... Rhb8 {[%clk 0:02:21.3]} 26. Nf5+ {[%clk 0:01:33.7]}
26... Kf8 {[%clk 0:02:20.5]} 27. Re7 {[%clk 0:01:19.9]} 27... Rxb2 {[%clk
0:02:17.4]} 28. Rxh7 {[%clk 0:01:19.3]} 28... Kg8 {[%clk 0:02:14.6]} 29. Rg7+
{[%clk 0:01:07.2]} 29... Kh8 {[%clk 0:02:12.9]} 30. Bg6 {[%clk 0:01:02.8]} 30...
Rab8 {[%clk 0:02:09.7]} 31. Rh7+ {[%clk 0:01:02.7]} 31... Kg8 {[%clk 0:02:10.2]}
32. Rg7+ {[%clk 0:00:46]} 32... Kh8 {[%clk 0:02:06.9]} 33. Rh7+ {[%clk
0:00:35.9]} 33... Kg8 {[%clk 0:02:07]} 34. Rg7+ {[%clk 0:00:20.8]} 34... Kf8
{[%clk 0:02:07.6]} 35. Rh7 {[%clk 0:00:18]} 35... Rb1+ {[%clk 0:01:54.2]} 36.
Kf2 {[%clk 0:00:18]} 36... R1b2+ {[%clk 0:01:54.1]} 37. Kg3 {[%clk 0:00:15.3]}
37... Kg8 {[%clk 0:01:54.5]} 38. Rg7+ {[%clk 0:00:14.9]} 38... Kh8 {[%clk
0:01:55.1]} 39. Rh7+ {[%clk 0:00:15.1]} 39... Kg8 {[%clk 0:01:55.7]} 40. Rg7+
{[%clk 0:00:16]} 40... Kh8 {[%clk 0:01:56.1]} 41. Rh7+ {[%clk 0:00:16.4]} 41...
Kg8 {[%clk 0:01:56.7]} 1/2-1/2

[Event "Early-Titled-Tuesday-Blitz-December-26-2023"]
[Site "Chess.com"]
[Date "2023.12.26"]
[Round "4"]
[White "thechesscorner64"]
[Black "nekotyanof"]
[Result "0-1"]
[WhiteElo "2433"]
[BlackElo "2637"]
[TimeControl "180+1"]
[EndTime "8:36:45 PST"]
[Termination "nekotyanof won by checkmate"]

1. e4 {[%clk 0:03:00.9]} 1... c5 {[%clk 0:03:00]} 2. Nf3 {[%clk 0:03:00.5]} 2...
Nc6 {[%clk 0:03:00.7]} 3. Bb5 {[%clk 0:03:00.3]} 3... e5 {[%clk 0:03:00.7]} 4.
O-O {[%clk 0:03:00.2]} 4... Bd6 {[%clk 0:03:01.1]} 5. Nc3 {[%clk 0:02:58.4]}
5... a6 {[%clk 0:03:00.2]} 6. Be2 {[%clk 0:02:57.7]} 6... Nf6 {[%clk 0:03:00.2]}
7. d3 {[%clk 0:02:57.5]} 7... h6 {[%clk 0:03:00.6]} 8. Nd5 {[%clk 0:02:57.7]}
8... Nxd5 {[%clk 0:02:59]} 9. exd5 {[%clk 0:02:57.5]} 9... Ne7 {[%clk
0:02:59.9]} 10. c4 {[%clk 0:02:55.2]} 10... g5 {[%clk 0:03:00.3]} 11. Nd2 {[%clk
0:02:53.4]} 11... f5 {[%clk 0:02:49.5]} 12. Bh5+ {[%clk 0:02:53.2]} 12... Kf8
{[%clk 0:02:49.6]} 13. b4 {[%clk 0:02:50]} 13... cxb4 {[%clk 0:02:47.8]} 14. Nb3
{[%clk 0:02:47.3]} 14... b6 {[%clk 0:02:46.6]} 15. d4 {[%clk 0:02:46.8]} 15...
Qc7 {[%clk 0:02:41.5]} 16. c5 {[%clk 0:02:43.9]} 16... bxc5 {[%clk 0:02:36.5]}
17. dxc5 {[%clk 0:02:44.8]} 17... Bxc5 {[%clk 0:02:37]} 18. Bd2 {[%clk
0:02:41.9]} 18... d6 {[%clk 0:02:33.5]} 19. Rc1 {[%clk 0:02:41.2]} 19... Nxd5
{[%clk 0:02:28]} 20. Qf3 {[%clk 0:02:29.3]} 20... e4 {[%clk 0:02:26.6]} 21. Qh3
{[%clk 0:02:28.9]} 21... Qe7 {[%clk 0:02:19.1]} 22. Be2 {[%clk 0:02:03]} 22...
Be6 {[%clk 0:02:13.1]} 23. Bc4 {[%clk 0:01:57.2]} 23... f4 {[%clk 0:02:11.3]}
24. Qh5 {[%clk 0:01:53.6]} 24... Bf7 {[%clk 0:02:02.7]} 25. Qe2 {[%clk
0:01:53.1]} 25... Kg7 {[%clk 0:01:56.6]} 26. Nxc5 {[%clk 0:01:42.8]} 26... dxc5
{[%clk 0:01:56.7]} 27. a3 {[%clk 0:01:43.3]} 27... a5 {[%clk 0:01:54.5]} 28.
Rfe1 {[%clk 0:01:41.2]} 28... Rhe8 {[%clk 0:01:53.7]} 29. Bb5 {[%clk 0:01:37.5]}
29... Red8 {[%clk 0:01:51.3]} 30. Qxe4 {[%clk 0:01:31.3]} 30... Qxe4 {[%clk
0:01:51.5]} 31. Rxe4 {[%clk 0:01:31.9]} 31... Nf6 {[%clk 0:01:52.4]} 32. Re2
{[%clk 0:01:31]} 32... Rac8 {[%clk 0:01:40.9]} 33. h4 {[%clk 0:01:29.1]} 33...
Rxd2 {[%clk 0:01:32.5]} 34. Rxd2 {[%clk 0:01:27.1]} 34... c4 {[%clk 0:01:32.3]}
35. axb4 {[%clk 0:01:26.8]} 35... axb4 {[%clk 0:01:32.6]} 36. hxg5 {[%clk
0:01:26.3]} 36... hxg5 {[%clk 0:01:31.5]} 37. Rd4 {[%clk 0:01:22.4]} 37... b3
{[%clk 0:01:31.7]} 38. Rc3 {[%clk 0:01:03.8]} 38... b2 {[%clk 0:01:30.1]} 39.
Rd1 {[%clk 0:01:02.9]} 39... Rb8 {[%clk 0:01:30.6]} 40. Bxc4 {[%clk 0:00:49.5]}
40... Bxc4 {[%clk 0:01:31.5]} 41. Rxc4 {[%clk 0:00:49.3]} 41... b1=Q {[%clk
0:01:32.1]} 42. Rxb1 {[%clk 0:00:49.5]} 42... Rxb1+ {[%clk 0:01:33]} 43. Kh2
{[%clk 0:00:48.7]} 43... Ng4+ {[%clk 0:01:33.1]} 44. Kh3 {[%clk 0:00:48.8]}
44... Nxf2+ {[%clk 0:01:34]} 45. Kh2 {[%clk 0:00:48.9]} 45... Rh1# {[%clk
0:01:34.9]} 0-1

[Event "Early-Titled-Tuesday-Blitz-December-26-2023"]
[Site "Chess.com"]
[Date "2023.12.26"]
[Round "4"]
[White "frederiksvane"]
[Black "suyu28"]
[Result "1-0"]
[WhiteElo "2952"]
[BlackElo "2789"]
[TimeControl "180+1"]
[EndTime "8:36:52 PST"]
[Termination "frederiksvane won by resignation"]

1. e4 {[%clk 0:03:00.9]} 1... c6 {[%clk 0:02:46.5]} 2. d4 {[%clk 0:03:00]} 2...
d5 {[%clk 0:02:47]} 3. exd5 {[%clk 0:03:00.9]} 3... cxd5 {[%clk 0:02:47.3]} 4.
Nf3 {[%clk 0:03:01.8]} 4... Nc6 {[%clk 0:02:44.7]} 5. c3 {[%clk 0:03:02.1]} 5...
Nf6 {[%clk 0:02:42.3]} 6. Ne5 {[%clk 0:03:02.1]} 6... e6 {[%clk 0:02:39.6]} 7.
Nd2 {[%clk 0:02:58.9]} 7... Bd6 {[%clk 0:02:35.9]} 8. f4 {[%clk 0:02:58.7]} 8...
O-O {[%clk 0:02:28.9]} 9. Bd3 {[%clk 0:02:59]} 9... Qc7 {[%clk 0:02:27.1]} 10.
O-O {[%clk 0:02:59.2]} 10... b6 {[%clk 0:02:24.4]} 11. Rf3 {[%clk 0:02:59.3]}
11... Bb7 {[%clk 0:02:22.6]} 12. Rh3 {[%clk 0:02:59.7]} 12... g6 {[%clk
0:02:20.5]} 13. Ndf3 {[%clk 0:02:45.4]} 13... Ne7 {[%clk 0:02:19.9]} 14. Ng5
{[%clk 0:02:44.6]} 14... Nf5 {[%clk 0:02:18.4]} 15. g4 {[%clk 0:02:36.1]} 15...
Ne7 {[%clk 0:02:17.2]} 16. Qe1 {[%clk 0:02:33]} 16... h5 {[%clk 0:02:10.2]} 17.
gxh5 {[%clk 0:01:57.8]} 17... Nxh5 {[%clk 0:02:04.7]} 18. Rxh5 {[%clk
0:01:27.6]} 18... gxh5 {[%clk 0:02:04.5]} 19. Qh4 {[%clk 0:01:28.3]} 19... Nf5
{[%clk 0:01:12.4]} 20. Qxh5 {[%clk 0:01:27.8]} 20... f6 {[%clk 0:01:13.3]} 21.
Nxe6 {[%clk 0:01:27.1]} 21... Qe7 {[%clk 0:01:13]} 22. Bxf5 {[%clk 0:01:15.7]}
22... fxe5 {[%clk 0:01:13.1]} 23. fxe5 {[%clk 0:00:57.7]} 23... Bxe5 {[%clk
0:01:13.2]} 24. dxe5 {[%clk 0:00:54.4]} 24... Bc8 {[%clk 0:00:59.5]} 25. Nxf8
{[%clk 0:00:36.8]} 25... Qxe5 {[%clk 0:00:59.7]} 26. Bh7+ {[%clk 0:00:36.5]}
26... Kxf8 {[%clk 0:00:59.9]} 27. Qxe5 {[%clk 0:00:36.8]} 1-0

[Event "Early-Titled-Tuesday-Blitz-December-26-2023"]
[Site "Chess.com"]
[Date "2023.12.26"]
[Round "4"]
[White "aksuliini1"]
[Black "matagordo"]
[Result "0-1"]
[WhiteElo "2479"]
[BlackElo "2247"]
[TimeControl "180+1"]
[EndTime "8:36:52 PST"]
[Termination "matagordo won by checkmate"]

1. e4 {[%clk 0:03:00.7]} 1... e6 {[%clk 0:02:57.8]} 2. d4 {[%clk 0:02:53.2]}
2... d5 {[%clk 0:02:57.1]} 3. Nd2 {[%clk 0:02:49.5]} 3... Nc6 {[%clk 0:02:56.7]}
4. Ngf3 {[%clk 0:02:48.5]} 4... Nf6 {[%clk 0:02:56.3]} 5. e5 {[%clk 0:02:46.1]}
5... Nd7 {[%clk 0:02:56.6]} 6. c3 {[%clk 0:02:45]} 6... f6 {[%clk 0:02:52.7]} 7.
exf6 {[%clk 0:02:33.5]} 7... Qxf6 {[%clk 0:02:53.6]} 8. Bb5 {[%clk 0:02:31.8]}
8... Bd6 {[%clk 0:02:52.3]} 9. O-O {[%clk 0:02:30.9]} 9... O-O {[%clk
0:02:52.5]} 10. Nb3 {[%clk 0:02:24]} 10... Kh8 {[%clk 0:02:47.1]} 11. Bg5 {[%clk
0:02:17.3]} 11... Qf7 {[%clk 0:02:46.7]} 12. Re1 {[%clk 0:02:12.7]} 12... e5
{[%clk 0:02:41.6]} 13. Bxc6 {[%clk 0:02:02.7]} 13... e4 {[%clk 0:02:04.4]} 14.
Bxd7 {[%clk 0:01:51.9]} 14... exf3 {[%clk 0:02:00.3]} 15. Bxc8 {[%clk 0:01:51]}
15... fxg2 {[%clk 0:02:00.1]} 16. Bh4 {[%clk 0:01:12.7]} 16... Raxc8 {[%clk
0:01:31]} 17. Nc5 {[%clk 0:01:10]} 17... g5 {[%clk 0:01:27.1]} 18. Ne6 {[%clk
0:01:00]} 18... gxh4 {[%clk 0:01:11.1]} 19. Nxf8 {[%clk 0:00:59.4]} 19... Rxf8
{[%clk 0:01:11.8]} 20. Re2 {[%clk 0:00:29.3]} 20... Qf4 {[%clk 0:01:01.8]} 21.
Kxg2 {[%clk 0:00:20.2]} 21... Qxh2+ {[%clk 0:01:00.5]} 22. Kf1 {[%clk
0:00:20.7]} 22... Qh1# {[%clk 0:01:01.4]} 0-1

[Event "Early-Titled-Tuesday-Blitz-December-26-2023"]
[Site "Chess.com"]
[Date "2023.12.26"]
[Round "4"]
[White "Fischerev7"]
[Black "LeoWin2012"]
[Result "1-0"]
[WhiteElo "2391"]
[BlackElo "2225"]
[TimeControl "180+1"]
[EndTime "8:37:01 PST"]
[Termination "Fischerev7 won by checkmate"]

1. e4 {[%clk 0:02:55.5]} 1... c5 {[%clk 0:02:57.5]} 2. Nf3 {[%clk 0:02:52.4]}
2... d6 {[%clk 0:02:57.2]} 3. d4 {[%clk 0:02:51.4]} 3... cxd4 {[%clk 0:02:58.1]}
4. Nxd4 {[%clk 0:02:52.1]} 4... Nf6 {[%clk 0:02:58.1]} 5. Nc3 {[%clk 0:02:50.4]}
5... a6 {[%clk 0:02:57.7]} 6. Bc4 {[%clk 0:02:50.5]} 6... e6 {[%clk 0:02:50.3]}
7. O-O {[%clk 0:02:46.7]} 7... Be7 {[%clk 0:02:49.6]} 8. f4 {[%clk 0:02:46.3]}
8... O-O {[%clk 0:02:39.4]} 9. f5 {[%clk 0:02:46.4]} 9... e5 {[%clk 0:02:36.7]}
10. Nde2 {[%clk 0:02:46.4]} 10... Qc7 {[%clk 0:02:31]} 11. Bb3 {[%clk
0:02:44.9]} 11... b5 {[%clk 0:02:21.1]} 12. Ng3 {[%clk 0:02:44.1]} 12... Bb7
{[%clk 0:02:19.5]} 13. Bg5 {[%clk 0:02:41.6]} 13... Nbd7 {[%clk 0:02:16.3]} 14.
a3 {[%clk 0:02:30.6]} 14... Nc5 {[%clk 0:02:09.5]} 15. Bxf6 {[%clk 0:02:29.5]}
15... Bxf6 {[%clk 0:02:08.7]} 16. Bd5 {[%clk 0:02:28.4]} 16... Qb6 {[%clk
0:02:01.4]} 17. Kh1 {[%clk 0:02:26.3]} 17... Rac8 {[%clk 0:01:29.2]} 18. Bxb7
{[%clk 0:02:25.8]} 18... Qxb7 {[%clk 0:01:27.4]} 19. Nd5 {[%clk 0:02:24.9]}
19... Bh4 {[%clk 0:01:18.5]} 20. Nh5 {[%clk 0:01:56.7]} 20... g6 {[%clk
0:00:59.2]} 21. fxg6 {[%clk 0:01:54.4]} 21... fxg6 {[%clk 0:00:56.6]} 22. Qg4
{[%clk 0:01:42.6]} 22... Be7 {[%clk 0:00:39.3]} 23. b4 {[%clk 0:01:34.5]} 23...
Na4 {[%clk 0:00:29.2]} 24. Qe6+ {[%clk 0:01:32.5]} 24... Kh8 {[%clk 0:00:29.2]}
25. Nxe7 {[%clk 0:01:25.8]} 25... Rxf1+ {[%clk 0:00:03.5]} 26. Rxf1 {[%clk
0:01:24.6]} 26... Re8 {[%clk 0:00:01.3]} 27. Qf6# {[%clk 0:01:24.5]} 1-0

[Event "Early-Titled-Tuesday-Blitz-December-26-2023"]
[Site "Chess.com"]
[Date "2023.12.26"]
[Round "4"]
[White "Gyulamiryan-koryun"]
[Black "szefru"]
[Result "0-1"]
[WhiteElo "2000"]
[BlackElo "2263"]
[TimeControl "180+1"]
[EndTime "8:37:01 PST"]
[Termination "szefru won by resignation"]

1. e4 {[%clk 0:02:51.7]} 1... e6 {[%clk 0:02:58.8]} 2. d4 {[%clk 0:02:50.3]}
2... d5 {[%clk 0:02:58.4]} 3. Nd2 {[%clk 0:02:49.1]} 3... Nf6 {[%clk 0:02:55]}
4. e5 {[%clk 0:02:48.7]} 4... Nfd7 {[%clk 0:02:55.3]} 5. Bd3 {[%clk 0:02:46.5]}
5... c5 {[%clk 0:02:55.4]} 6. c3 {[%clk 0:02:46.6]} 6... Nc6 {[%clk 0:02:55.5]}
7. Ne2 {[%clk 0:02:43.4]} 7... cxd4 {[%clk 0:02:55.6]} 8. cxd4 {[%clk 0:02:43]}
8... Nb4 {[%clk 0:02:56]} 9. Bb1 {[%clk 0:02:38.4]} 9... Be7 {[%clk 0:02:53.4]}
10. O-O {[%clk 0:02:38]} 10... O-O {[%clk 0:02:53.4]} 11. a3 {[%clk 0:02:37.6]}
11... Nc6 {[%clk 0:02:53.6]} 12. b4 {[%clk 0:02:37.4]} 12... Qb6 {[%clk
0:02:51.1]} 13. Nb3 {[%clk 0:02:35.4]} 13... a5 {[%clk 0:02:49.4]} 14. Qc2
{[%clk 0:02:34.2]} 14... g6 {[%clk 0:02:48.9]} 15. Bh6 {[%clk 0:02:32.1]} 15...
Re8 {[%clk 0:02:24.9]} 16. bxa5 {[%clk 0:02:02.6]} 16... Nxa5 {[%clk 0:02:25.8]}
17. Nxa5 {[%clk 0:02:01.4]} 17... Rxa5 {[%clk 0:02:25.3]} 18. Bc1 {[%clk
0:01:56.4]} 18... Qa7 {[%clk 0:02:22.3]} 19. Bh6 {[%clk 0:01:43.9]} 19... Nb6
{[%clk 0:02:14.9]} 20. Nc3 {[%clk 0:01:28.4]} 20... Nc4 {[%clk 0:02:11.5]} 21.
a4 {[%clk 0:01:24.3]} 21... Bd7 {[%clk 0:02:09.9]} 22. Qd3 {[%clk 0:00:49.6]}
22... Bxa4 {[%clk 0:02:03.4]} 23. Nxa4 {[%clk 0:00:45.4]} 23... Rxa4 {[%clk
0:02:04.3]} 24. Bc2 {[%clk 0:00:45.6]} 24... Rxa1 {[%clk 0:02:03.6]} 25. Bd1
{[%clk 0:00:38.5]} 25... Nb2 {[%clk 0:02:01.4]} 26. Qd2 {[%clk 0:00:29.3]} 26...
Nxd1 {[%clk 0:01:59.1]} 27. Rxd1 {[%clk 0:00:29.2]} 27... Bb4 {[%clk 0:01:59.5]}
28. Qe2 {[%clk 0:00:27.6]} 28... Qxd4 {[%clk 0:01:58.1]} 29. Rf1 {[%clk
0:00:19.8]} 29... Rxf1+ {[%clk 0:01:48]} 30. Qxf1 {[%clk 0:00:19.4]} 30... Ra8
{[%clk 0:01:48]} 31. Bc1 {[%clk 0:00:10.2]} 31... Ra1 {[%clk 0:01:47.8]} 32. g3
{[%clk 0:00:07.5]} 32... Ba3 {[%clk 0:01:47]} 33. Kg2 {[%clk 0:00:07]} 33...
Rxc1 {[%clk 0:01:43.6]} 0-1

[Event "Early-Titled-Tuesday-Blitz-December-26-2023"]
[Site "Chess.com"]
[Date "2023.12.26"]
[Round "4"]
[White "rasmussvane"]
[Black "combidharma"]
[Result "1-0"]
[WhiteElo "2936"]
[BlackElo "2780"]
[TimeControl "180+1"]
[EndTime "8:37:24 PST"]
[Termination "rasmussvane won by resignation"]

1. Nf3 {[%clk 0:02:51.4]} 1... Nf6 {[%clk 0:02:55.5]} 2. g3 {[%clk 0:02:50.4]}
2... g6 {[%clk 0:02:54.7]} 3. Bg2 {[%clk 0:02:47.3]} 3... c5 {[%clk 0:02:54.6]}
4. c4 {[%clk 0:02:41.2]} 4... Bg7 {[%clk 0:02:53.7]} 5. O-O {[%clk 0:02:40.7]}
5... O-O {[%clk 0:02:51.7]} 6. Nc3 {[%clk 0:02:38]} 6... Nc6 {[%clk 0:02:51.4]}
7. d4 {[%clk 0:02:37.4]} 7... cxd4 {[%clk 0:02:52.3]} 8. Nxd4 {[%clk 0:02:38.1]}
8... d6 {[%clk 0:02:52.6]} 9. e3 {[%clk 0:02:33.6]} 9... Bd7 {[%clk 0:02:49.1]}
10. b3 {[%clk 0:02:33.1]} 10... Rc8 {[%clk 0:02:48.4]} 11. Bb2 {[%clk
0:02:33.3]} 11... Qa5 {[%clk 0:02:41.8]} 12. Qd2 {[%clk 0:02:31.9]} 12... Rfd8
{[%clk 0:02:41.7]} 13. Rac1 {[%clk 0:02:29]} 13... a6 {[%clk 0:02:40.1]} 14. h3
{[%clk 0:02:29.1]} 14... Nxd4 {[%clk 0:02:30.9]} 15. exd4 {[%clk 0:02:28.1]}
15... b5 {[%clk 0:02:31.5]} 16. cxb5 {[%clk 0:02:16.1]} 16... axb5 {[%clk
0:02:32.4]} 17. a3 {[%clk 0:02:15.9]} 17... Bc6 {[%clk 0:02:16.7]} 18. d5 {[%clk
0:02:14.8]} 18... Bb7 {[%clk 0:02:11.7]} 19. b4 {[%clk 0:02:09.2]} 19... Qb6
{[%clk 0:02:10.7]} 20. Rfe1 {[%clk 0:02:08.8]} 20... Rc7 {[%clk 0:02:09.1]} 21.
Re2 {[%clk 0:01:21.2]} 21... Rdc8 {[%clk 0:02:06.9]} 22. Rce1 {[%clk 0:01:21.3]}
22... Kf8 {[%clk 0:01:40]} 23. Qd3 {[%clk 0:01:16.6]} 23... Rc4 {[%clk
0:01:39.7]} 24. Rxe7 {[%clk 0:01:10.8]} 24... Ba8 {[%clk 0:01:18.8]} 25. R7e2
{[%clk 0:01:00.5]} 25... Nd7 {[%clk 0:01:10.2]} 26. Nd1 {[%clk 0:00:41.6]} 26...
Ne5 {[%clk 0:01:03.4]} 27. Qe3 {[%clk 0:00:31.5]} 27... Qc7 {[%clk 0:00:47.4]}
28. f4 {[%clk 0:00:26.4]} 28... Nd7 {[%clk 0:00:46.2]} 29. Qe8+ {[%clk
0:00:26.1]} 1-0

[Event "Early-Titled-Tuesday-Blitz-December-26-2023"]
[Site "Chess.com"]
[Date "2023.12.26"]
[Round "4"]
[White "NowInChess"]
[Black "viktorskliarov"]
[Result "0-1"]
[WhiteElo "2304"]
[BlackElo "2649"]
[TimeControl "180+1"]
[EndTime "8:37:24 PST"]
[Termination "viktorskliarov won by resignation"]

1. e4 {[%clk 0:03:00.9]} 1... c5 {[%clk 0:02:58.4]} 2. d3 {[%clk 0:03:01.3]}
2... Nc6 {[%clk 0:02:58.3]} 3. g3 {[%clk 0:03:01.7]} 3... g6 {[%clk 0:02:58.8]}
4. Bg2 {[%clk 0:03:02.1]} 4... Bg7 {[%clk 0:02:59.4]} 5. f4 {[%clk 0:03:02.7]}
5... d6 {[%clk 0:02:58.1]} 6. Nf3 {[%clk 0:03:03.1]} 6... Nf6 {[%clk 0:02:58.3]}
7. O-O {[%clk 0:03:03.2]} 7... O-O {[%clk 0:02:59]} 8. h3 {[%clk 0:03:02.1]}
8... Rb8 {[%clk 0:02:58.7]} 9. g4 {[%clk 0:03:01.3]} 9... b5 {[%clk 0:02:58.5]}
10. Nc3 {[%clk 0:03:01.5]} 10... b4 {[%clk 0:02:56.8]} 11. Ne2 {[%clk
0:03:01.5]} 11... a5 {[%clk 0:02:56]} 12. f5 {[%clk 0:02:57.4]} 12... Ba6 {[%clk
0:02:54.5]} 13. Rb1 {[%clk 0:02:53.5]} 13... c4 {[%clk 0:02:46.1]} 14. Ng3
{[%clk 0:02:43.5]} 14... b3 {[%clk 0:02:33.4]} 15. axb3 {[%clk 0:02:34.2]} 15...
cxd3 {[%clk 0:02:32.9]} 16. cxd3 {[%clk 0:02:27.1]} 16... Qb6+ {[%clk
0:02:32.4]} 17. Kh1 {[%clk 0:02:20.5]} 17... Qxb3 {[%clk 0:02:32]} 18. Qxb3
{[%clk 0:01:42.1]} 18... Rxb3 {[%clk 0:02:30.8]} 19. g5 {[%clk 0:01:38.3]} 19...
Nd7 {[%clk 0:02:27.2]} 20. Nd2 {[%clk 0:01:36.7]} 20... Rxd3 {[%clk 0:02:19]}
21. Rf3 {[%clk 0:01:28.4]} 21... Nde5 {[%clk 0:02:09.2]} 22. Rxd3 {[%clk
0:01:25.1]} 22... Bxd3 {[%clk 0:02:08.8]} 23. Ra1 {[%clk 0:01:23]} 23... Rb8
{[%clk 0:02:09.1]} 24. Bf1 {[%clk 0:00:55.5]} 24... Rb5 {[%clk 0:02:01.3]} 25.
Ra3 {[%clk 0:00:47.9]} 25... Bxf1 {[%clk 0:01:41.3]} 26. Ngxf1 {[%clk 0:00:48]}
26... Rc5 {[%clk 0:01:15.2]} 27. Nb3 {[%clk 0:00:38.9]} 27... Rc4 {[%clk
0:01:07.4]} 28. Nbd2 {[%clk 0:00:20.4]} 28... Rxc1 {[%clk 0:01:06.4]} 29. Kg2
{[%clk 0:00:12.4]} 29... h6 {[%clk 0:01:03.1]} 30. Nb3 {[%clk 0:00:11.9]} 30...
Rc2+ {[%clk 0:01:02.1]} 31. Kg3 {[%clk 0:00:11.2]} 31... hxg5 {[%clk 0:01:02.2]}
0-1

[Event "Early-Titled-Tuesday-Blitz-December-26-2023"]
[Site "Chess.com"]
[Date "2023.12.26"]
[Round "4"]
[White "GMBenjaminBok"]
[Black "Lion-Al-Messi"]
[Result "1-0"]
[WhiteElo "2974"]
[BlackElo "2624"]
[TimeControl "180+1"]
[EndTime "8:37:27 PST"]
[Termination "GMBenjaminBok won on time"]

1. d4 {[%clk 0:03:00.9]} 1... Nf6 {[%clk 0:02:59.2]} 2. c4 {[%clk 0:03:01.2]}
2... b6 {[%clk 0:02:59.5]} 3. Nc3 {[%clk 0:03:01.3]} 3... Bb7 {[%clk 0:02:59.8]}
4. Qc2 {[%clk 0:03:01.9]} 4... d5 {[%clk 0:02:59.8]} 5. cxd5 {[%clk 0:03:02.8]}
5... Nxd5 {[%clk 0:03:00.3]} 6. e4 {[%clk 0:03:03.4]} 6... Nxc3 {[%clk
0:03:00.9]} 7. bxc3 {[%clk 0:03:04.3]} 7... e5 {[%clk 0:03:01.3]} 8. Nf3 {[%clk
0:03:04.5]} 8... exd4 {[%clk 0:03:01.1]} 9. Bb5+ {[%clk 0:03:04.2]} 9... c6
{[%clk 0:02:58.7]} 10. Bc4 {[%clk 0:03:03.9]} 10... b5 {[%clk 0:02:45.9]} 11.
Bb3 {[%clk 0:02:00.8]} 11... d3 {[%clk 0:02:45.3]} 12. Qb1 {[%clk 0:01:58.4]}
12... c5 {[%clk 0:02:09.9]} 13. Ne5 {[%clk 0:01:55.4]} 13... Bd6 {[%clk
0:00:52.4]} 14. Nxf7 {[%clk 0:01:38.5]} 14... Qe7 {[%clk 0:00:25.8]} 15. Qxd3
{[%clk 0:01:38.2]} 15... Bc7 {[%clk 0:00:25.1]} 16. Bg5 {[%clk 0:01:18.2]} 16...
c4 {[%clk 0:00:17.2]} 17. Bxe7 {[%clk 0:01:13.9]} 17... cxd3 {[%clk 0:00:17.4]}
18. Bd6 {[%clk 0:01:04.7]} 18... Ba5 {[%clk 0:00:07.8]} 19. Bb4 {[%clk
0:01:01.1]} 19... Bxb4 {[%clk 0:00:07.2]} 20. cxb4 {[%clk 0:01:02]} 20... Rf8
{[%clk 0:00:06.9]} 21. Nd6+ {[%clk 0:01:02.3]} 21... Ke7 {[%clk 0:00:06.7]} 22.
Nxb7 {[%clk 0:01:03.2]} 22... Nc6 {[%clk 0:00:06.6]} 23. a3 {[%clk 0:00:52.6]}
23... Nd4 {[%clk 0:00:05.7]} 24. Bd1 {[%clk 0:00:46.2]} 1-0